bitfinex/quotes_BTCUSD_20251201
["timestamp","ask_amount","ask_price","bid_price","bid_amount"]
[1764549758877,0.01089519,88087.0,88086.0,0.00011865]
[1764549759140,0.36089519,88087.0,88086.0,0.00015207]
[1764549759357,0.36089519,88087.0,88060.0,0.70901426]
[1764549759358,0.01135563,88062.0,88060.0,0.70901426]
[1764549759553,0.40011819,88062.0,88055.0,0.00190938]
[1764549759755,0.41147382,88062.0,88055.0,0.00190938]
[1764549760111,0.01089519,88049.0,88041.0,0.23852522]
[1764549760314,0.39089519,88049.0,88044.0,0.22715914]
[1764549760511,0.01135744,88048.0,88041.0,0.00190938]
[1764549760686,0.35,88048.0,88041.0,0.00190938]
[1764549761012,0.35,88048.0,88046.0,0.22715398]
[1764549761217,0.35,88048.0,88042.0,0.323]
[1764549761376,0.35,88048.0,88045.0,0.01135782]
[1764549761577,0.35,88048.0,88045.0,0.23851243]
[1764549761981,0.35,88048.0,88047.0,0.2271514]
[1764549763367,0.35,88048.0,88047.0,0.2281514]
[1764549765395,0.35,88048.0,88047.0,0.22935838]
[1764549766082,0.35,88048.0,88047.0,0.55879838]
[1764549766224,0.35,88048.0,88047.0,0.56523838]
[1764549766636,0.35,88048.0,88047.0,0.57612675]
[1764549766878,0.35,88048.0,88047.0,0.56968675]
[1764549767056,0.35,88048.0,88047.0,0.55879838]
[1764549767248,0.35,88048.0,88047.0,0.32520698]
[1764549767991,0.35,88048.0,88047.0,0.34253535]
[1764549768372,0.35,88048.0,88047.0,0.33808698]
[1764549769369,0.35,88048.0,88047.0,0.33164698]
[1764549770385,0.35,88048.0,88047.0,0.32520698]
[1764549770705,0.35,88048.0,88047.0,0.22935838]
[1764549771353,0.35,88048.0,88047.0,0.00220698]
[1764549771805,0.35,88048.0,88047.0,0.22935838]
[1764549772160,0.35,88048.0,88047.0,0.00220698]
[1764549772406,0.35,88048.0,88047.0,0.10341074]
[1764549772989,0.35,88048.0,88047.0,0.00220698]
[1764549773599,0.50728,88048.0,88047.0,0.00220698]
[1764549773996,0.51817519,88048.0,88047.0,0.00220698]
[1764549774560,0.35,88048.0,88047.0,0.00220698]
[1764549774848,0.35,88048.0,88047.0,0.22935838]
[1764549775048,0.35,88048.0,88047.0,0.23579838]
[1764549775368,0.35,88048.0,88047.0,0.22935838]
[1764549775847,0.35,88048.0,88047.0,0.00120698]
[1764549776194,0.352,88048.0,88047.0,0.22835838]
[1764549776393,0.35,88048.0,88047.0,0.22835838]
[1764549777007,0.35,88048.0,88047.0,0.55779838]
[1764549777208,0.35,88048.0,88047.0,0.32420698]
[1764549778923,0.35,88048.0,88047.0,0.34797535]
[1764549779109,0.35,88048.0,88047.0,0.00120698]
[1764549779486,0.42266519,88048.0,88047.0,0.00120698]
[1764549779640,0.35,88048.0,88047.0,0.00120698]
[1764549781402,0.35,88048.0,88047.0,0.00764698]
[1764549781559,0.35,88048.0,88047.0,0.01408698]
[1764549781763,0.35,88048.0,88047.0,0.00764698]
[1764549782098,0.35,88048.0,88047.0,0.23479838]
[1764549782304,0.35,88048.0,88047.0,0.22835838]
[1764549782463,0.352,88048.0,88047.0,0.00120698]
[1764549782672,0.73642882,88048.0,88047.0,0.00120698]
[1764549782881,0.74532401,88048.0,88047.0,0.00120698]
[1764549783077,0.74532401,88048.0,88047.0,0.00220698]
[1764549783282,0.64981401,88048.0,88047.0,0.00220698]
[1764549783483,0.64981401,88048.0,88047.0,0.00120698]
[1764549783484,0.74532401,88048.0,88047.0,0.00120698]
[1764549784140,0.51817519,88048.0,88047.0,0.00120698]
[1764549784506,0.01135937,88033.0,88030.0,0.005132]
[1764549784700,0.33888269,88031.0,88030.0,0.005132]
[1764549784947,0.74977788,88031.0,88030.0,0.005132]
[1764549785147,0.84528788,88031.0,88030.0,0.005132]
[1764549785506,0.84528788,88031.0,88030.0,0.00704138]
[1764549785706,0.61809519,88031.0,88030.0,0.00743698]
[1764549786269,0.4,88031.0,88030.0,0.00743698]
[1764549786584,0.402,88031.0,88030.0,0.00743698]
[1764549786984,0.402,88031.0,88030.0,0.34573698]
[1764549787221,0.402,88031.0,88030.0,0.33808698]
[1764549787803,0.402,88031.0,88030.0,0.00743698]
[1764549788010,0.45192,88031.0,88030.0,0.0055276]
[1764549788216,0.46081519,88031.0,88030.0,0.0055276]
[1764549788420,0.61809519,88031.0,88030.0,0.0055276]
[1764549788631,0.61909519,88031.0,88030.0,0.0055276]
[1764549788864,0.61809519,88031.0,88030.0,0.0055276]
[1764549789060,0.68800788,88031.0,88030.0,0.0055276]
[1764549789229,0.84528788,88031.0,88030.0,0.0055276]
[1764549789556,0.44992,88031.0,88030.0,0.0055276]
[1764549789755,0.45092,88031.0,88030.0,0.0055276]
[1764549790158,0.44992,88031.0,88030.0,0.00605394]
[1764549790505,0.44992,88031.0,88022.0,0.34168968]
[1764549790506,0.61809519,88031.0,88011.0,0.00190938]
[1764549790677,0.23859027,88017.0,88012.0,0.01136208]
[1764549790835,0.01136169,88015.0,88011.0,0.00202801]
[1764549791043,0.01136182,88014.0,88011.0,0.00202801]
[1764549791241,0.06177,88012.0,88011.0,0.00202801]
[1764549791562,0.45177,88012.0,88011.0,0.00202801]
[1764549791767,0.78541692,88012.0,88011.0,0.00011863]
[1764549792617,0.78541692,88012.0,87989.0,0.57537559]
[1764549792618,0.22729597,87991.0,87970.0,0.00190938]
[1764549792795,0.22729597,87991.0,87990.0,0.00051874]
[1764549792796,0.70996116,87991.0,87990.0,0.00051874]
[1764549792943,0.56728,87991.0,87990.0,0.00051874]
[1764549793141,0.41,87991.0,87990.0,0.00051874]
[1764549793709,0.56728,87991.0,87990.0,0.00051874]
[1764549793853,0.57128,87991.0,87990.0,0.00051874]
[1764549794056,0.58217519,87991.0,87990.0,0.00051874]
[1764549794465,0.57128,87991.0,87990.0,0.00051874]
[1764549794676,0.58217519,87991.0,87990.0,0.00051874]
[1764549794869,0.57917519,87991.0,87990.0,0.00051874]
[1764549795087,0.57817519,87991.0,87990.0,0.00051874]
[1764549795288,0.58017519,87991.0,87990.0,0.00051874]
[1764549795527,0.57917519,87991.0,87990.0,0.00051874]
[1764549795932,0.58117519,87991.0,87990.0,0.00051874]
[1764549796132,0.411,87991.0,87990.0,0.00051874]
[1764549796336,0.56828,87991.0,87990.0,0.00051874]
[1764549796544,0.58117519,87991.0,87990.0,0.00175787]
[1764549796750,0.57817519,87991.0,87990.0,0.00175787]
[1764549797049,0.57917519,87991.0,87990.0,0.00175787]
[1764549797258,0.57917519,87991.0,87975.0,0.01136686]
[1764549797259,0.57917519,87991.0,87970.0,0.56447473]
[1764549797524,0.01136686,87975.0,87970.0,0.56447473]
[1764549797690,0.10172519,87971.0,87964.0,0.01136828]
[1764549797892,0.10172519,87971.0,87960.0,0.0004]
[1764549797893,0.22736007,87967.0,87965.0,0.56447473]
[1764549798091,0.22736007,87967.0,87960.0,0.0004]
[1764549798092,0.36,87967.0,87960.0,0.0004]
[1764549798301,0.01136802,87966.0,87961.0,0.01136867]
[1764549798500,0.61872922,87966.0,87961.0,0.01327805]
[1764549798706,0.38,87966.0,87963.0,0.01136841]
[1764549799174,0.01136815,87965.0,87961.0,0.00190938]
[1764549799340,0.28851091,87962.0,87961.0,0.00190938]
[1764549799516,0.6494061,87962.0,87961.0,0.00190938]
[1764549799718,0.7416361,87962.0,87961.0,0.00190938]
[1764549800307,0.51426519,87962.0,87961.0,0.00190938]
[1764549800504,0.50348808,87962.0,87961.0,0.00190938]
[1764549800832,0.35011808,87962.0,87960.0,0.0004]
[1764549801031,0.22737349,87961.0,87960.0,0.0004]
[1764549801204,0.37,87961.0,87960.0,0.0004]
[1764549801636,0.43114,87961.0,87960.0,0.0004]
[1764549802227,0.52337,87961.0,87960.0,0.0004]
[1764549802434,0.43114,87961.0,87960.0,0.0004]
[1764549802663,0.37,87961.0,87960.0,0.0004]
[1764549802810,0.38089519,87961.0,87960.0,0.0004]
[1764549804172,0.53904519,87961.0,87960.0,0.0004]
[1764549804577,0.53904519,87961.0,87960.0,0.00012987]
[1764549804725,0.76642127,87961.0,87960.0,0.00012987]
[1764549804926,0.22739934,87951.0,87950.0,0.0004]
[1764549805160,0.67828453,87951.0,87950.0,0.0004]
[1764549805375,0.77366453,87951.0,87950.0,0.0004]
[1764549807635,0.77466453,87951.0,87950.0,0.0004]
[1764549809353,0.78202453,87951.0,87950.0,0.0004]
[1764549810085,0.77112934,87951.0,87950.0,0.0004]
[1764549810268,0.78202453,87951.0,87950.0,0.0004]
[1764549810500,0.78202453,87951.0,87950.0,0.00071005]
[1764549810936,0.78102453,87951.0,87950.0,0.00071005]
[1764549811130,0.78702453,87951.0,87950.0,0.00071005]
[1764549811337,1.11002453,87951.0,87950.0,0.00071005]
[1764549811537,1.10502453,87951.0,87950.0,0.00071005]
[1764549811736,1.28525043,87951.0,87950.0,0.00071005]
[1764549811916,1.17154752,87951.0,87950.0,0.00071005]
[1764549812117,1.16654752,87951.0,87950.0,0.00071005]
[1764549812319,1.17254752,87951.0,87950.0,0.00071005]
[1764549813202,0.5504252,87941.0,87940.0,0.0004]
[1764549813427,1.01661338,87941.0,87940.0,0.0004]
[1764549813659,1.11199338,87941.0,87940.0,0.0004]
[1764549814606,1.11299338,87941.0,87940.0,0.0004]
[1764549815011,0.82504519,87941.0,87940.0,0.0004]
[1764549815265,1.05883039,87941.0,87940.0,0.0004]
[1764549815481,1.05683039,87941.0,87940.0,0.0004]
[1764549815686,1.06283039,87941.0,87940.0,0.0004]
[1764549816072,0.01137436,87917.0,87910.0,0.56447473]
[1764549816278,0.0247,87912.0,87911.0,0.22750281]
[1764549816456,0.3947,87912.0,87911.0,0.22750281]
[1764549816639,0.37,87912.0,87911.0,0.32870657]
[1764549816839,0.37,87912.0,87911.0,0.34601657]
[1764549817246,0.37,87912.0,87911.0,0.36372256]
[1764549817648,0.37,87912.0,87911.0,0.32910256]
[1764549817885,0.37,87912.0,87911.0,0.33110256]
[1764549818100,0.37,87912.0,87911.0,0.32910256]
[1764549818306,0.37,87912.0,87911.0,0.18409406]
[1764549818514,0.37,87912.0,87911.0,0.0828903]
[1764549818723,0.37,87912.0,87911.0,0.18409406]
[1764549819105,0.37,87912.0,87911.0,0.18530384]
[1764549819432,0.37,87912.0,87911.0,0.20261384]
[1764549819780,0.37,87912.0,87911.0,0.19861384]
[1764549819981,0.37,87912.0,87911.0,0.21592384]
[1764549820220,0.37,87912.0,87911.0,0.55381221]
[1764549820435,0.37,87912.0,87911.0,0.54981221]
[1764549820603,0.04811519,87951.0,87950.0,0.22740193]
[1764549820802,0.41811519,87951.0,87950.0,0.22740193]
[1764549821006,0.01089519,87949.0,87948.0,0.22740601]
[1764549821262,0.35089519,87949.0,87943.0,0.22741995]
[1764549821467,0.03932107,87948.0,87940.0,0.00190938]
[1764549821603,0.06277,87942.0,87940.0,0.00190938]
[1764549821813,0.08613815,87941.0,87940.0,0.00230537]
[1764549822037,0.57241334,87941.0,87940.0,0.00039599]
[1764549822241,0.54904519,87941.0,87940.0,0.00039599]
[1764549822815,0.87204519,87941.0,87940.0,0.00039599]
[1764549823970,0.87304519,87941.0,87940.0,0.00039599]
[1764549824504,0.55004519,87941.0,87940.0,0.00039599]
[1764549825865,0.87304519,87941.0,87940.0,0.00039599]
[1764549826066,0.90607644,87941.0,87940.0,0.00039599]
[1764549826467,0.90607644,87941.0,87940.0,0.00070609]
[1764549827081,0.96859943,87941.0,87940.0,0.00070609]
[1764549827389,0.96959943,87941.0,87940.0,0.00070609]
[1764549827593,0.99742441,87941.0,87940.0,0.00070609]
[1764549827741,0.97359943,87941.0,87940.0,0.00070609]
[1764549827948,0.97359943,87941.0,87886.0,0.01141003]
[1764549827949,0.01137708,87896.0,87886.0,0.01141003]
[1764549828147,0.01089519,87892.0,87887.0,0.22756494]
[1764549828397,0.42089519,87892.0,87887.0,0.22756494]
[1764549828697,0.06341,87888.0,87886.0,0.01152871]
[1764549828907,0.23846013,87887.0,87886.0,0.01152871]
[1764549829059,1.12009494,87887.0,87886.0,0.01152871]
[1764549829278,0.47341,87887.0,87886.0,0.01152871]
[1764549829484,0.56953,87887.0,87886.0,0.01152871]
[1764549830082,0.58042519,87887.0,87886.0,0.01152871]
[1764549830525,0.58042519,87887.0,87886.0,0.01352871]
[1764549830526,0.58142519,87887.0,87886.0,0.01352871]
[1764549830950,0.58142519,87887.0,87886.0,0.01152871]
[1764549831156,0.90342519,87887.0,87886.0,0.01152871]
[1764549831296,0.58042519,87887.0,87886.0,0.01152871]
[1764549831720,0.48430519,87887.0,87886.0,0.01152871]
[1764549832124,0.58042519,87887.0,87886.0,0.01152871]
[1764549832434,0.58242519,87887.0,87886.0,0.01152871]
[1764549832635,0.58142519,87887.0,87886.0,0.01152871]
[1764549833371,0.58142519,87887.0,87873.0,0.23897993]
[1764549833372,0.01137889,87882.0,87870.0,0.0004]
[1764549833519,0.01137889,87882.0,87844.0,0.01138381]
[1764549833520,0.01138239,87855.0,87844.0,0.01138381]
[1764549833719,0.01138239,87855.0,87850.0,0.71160843]
[1764549833720,0.02227784,87853.0,87850.0,0.71160843]
[1764549833921,0.01138316,87849.0,87844.0,0.00202793]
[1764549834124,0.01138316,87849.0,87848.0,0.00285606]
[1764549834125,0.58904897,87849.0,87848.0,0.00285606]
[1764549834358,0.35,87849.0,87848.0,0.00285606]
[1764549835238,0.36089519,87849.0,87848.0,0.00285606]
[1764549835420,0.50953,87849.0,87848.0,0.00285606]
[1764549835642,0.35,87849.0,87848.0,0.00285606]
[1764549836212,0.52142519,87849.0,87848.0,0.00385606]
[1764549836594,0.52142519,87849.0,87848.0,0.00285606]
[1764549836825,0.52042519,87849.0,87848.0,0.00285606]
[1764549837013,0.52142519,87849.0,87848.0,0.00485606]
[1764549837155,0.52142519,87849.0,87848.0,0.00285606]
[1764549837580,0.36189519,87849.0,87848.0,0.00285606]
[1764549837813,0.351,87849.0,87848.0,0.03290606]
[1764549838226,0.351,87849.0,87848.0,0.00285606]
[1764549838452,0.51053,87849.0,87848.0,0.00285606]
[1764549838622,0.351,87849.0,87848.0,0.03290606]
[1764549838769,0.35,87849.0,87848.0,0.00285606]
[1764549838967,0.351,87849.0,87848.0,0.00285606]
[1764549839165,0.351,87849.0,87848.0,0.00485606]
[1764549839370,0.50953,87849.0,87848.0,0.00285606]
[1764549839566,0.35,87849.0,87848.0,0.00285606]
[1764549839773,0.35,87849.0,87848.0,0.00385606]
[1764549839986,0.35,87849.0,87848.0,0.03290606]
[1764549840188,0.35,87849.0,87848.0,0.06486544]
[1764549840389,0.35,87849.0,87848.0,0.06586544]
[1764549841049,0.385,87849.0,87848.0,0.00385606]
[1764549841239,0.35,87849.0,87848.0,0.23152202]
[1764549841506,0.50953,87849.0,87848.0,0.00285606]
[1764549841706,0.50953,87849.0,87817.0,0.00190938]
[1764549841707,0.83704231,87849.0,87805.0,0.03005]
[1764549841924,0.83704231,87849.0,87790.0,0.0004]
[1764549841925,0.83704231,87849.0,87830.0,0.00079614]
[1764549841926,0.06341,87831.0,87830.0,0.00079614]
[1764549842202,0.64112003,87831.0,87830.0,0.00079614]
[1764549842350,0.74813522,87831.0,87830.0,0.00079614]
[1764549842551,0.23911869,87823.0,87800.0,0.81160843]
[1764549842754,0.06341,87821.0,87800.0,0.1]
[1764549842954,0.01089519,87811.0,87802.0,0.22778524]
[1764549843141,0.56776197,87811.0,87800.0,0.10011889]
[1764549843341,0.01089519,87801.0,87800.0,0.10011889]
[1764549843586,0.41089519,87801.0,87800.0,0.10011889]
[1764549843771,0.4,87801.0,87800.0,0.10011889]
[1764549844758,0.41089519,87801.0,87800.0,0.10011889]
[1764549844980,0.4,87801.0,87800.0,0.10011889]
[1764549845391,0.4,87801.0,87800.0,0.10411889]
[1764549845616,0.4,87801.0,87800.0,0.10011889]
[1764549845831,0.55953,87801.0,87800.0,0.10011889]
[1764549846022,0.47430519,87801.0,87800.0,0.10111889]
[1764549846205,0.4,87801.0,87800.0,0.10111889]
[1764549846435,0.41089519,87801.0,87800.0,0.10111889]
[1764549846602,0.4,87801.0,87800.0,0.10111889]
[1764549847205,0.62778783,87801.0,87800.0,0.10111889]
[1764549847404,0.4,87801.0,87800.0,0.10111889]
[1764549847639,0.4,87801.0,87800.0,0.10011889]
[1764549847940,0.4,87801.0,87800.0,0.1026106]
[1764549848353,0.41089519,87801.0,87800.0,0.1016106]
[1764549848553,0.55953,87801.0,87800.0,0.1026106]
[1764549848761,0.57042519,87801.0,87800.0,0.1026106]
[1764549848935,0.57042519,87801.0,87800.0,0.1016106]
[1764549849345,0.57042519,87801.0,87800.0,0.1036106]
[1764549849582,0.57042519,87801.0,87800.0,0.1016106]
[1764549850703,0.57042519,87801.0,87800.0,0.0033006]
[1764549850704,0.95594818,87801.0,87800.0,0.0033006]
[1764549850868,0.89342519,87801.0,87800.0,0.0043006]
[1764549851063,0.89342519,87801.0,87800.0,0.0033006]
[1764549851261,0.57042519,87801.0,87800.0,0.0033006]
[1764549851469,0.57142519,87801.0,87800.0,0.0033006]
[1764549851665,0.57042519,87801.0,87800.0,0.0033006]
[1764549852072,0.57442519,87801.0,87800.0,0.0033006]
[1764549852699,0.63694818,87801.0,87800.0,0.0033006]
[1764549853073,0.95994818,87801.0,87800.0,0.0033006]
[1764549853881,0.89742519,87801.0,87800.0,0.0033006]
[1764549854195,0.57442519,87801.0,87800.0,0.0033006]
[1764549854552,0.41489519,87801.0,87800.0,0.0033006]
[1764549854765,0.64268302,87801.0,87800.0,0.0033006]
[1764549854986,0.404,87801.0,87800.0,0.0033006]
[1764549855430,0.403,87801.0,87800.0,0.0033006]
[1764549855700,0.41489519,87801.0,87800.0,0.0033006]
[1764549856159,0.404,87801.0,87800.0,0.0033006]
[1764549856355,0.41389519,87801.0,87800.0,0.0033006]
[1764549856883,0.41089519,87801.0,87800.0,0.0033006]
[1764549857159,0.47279519,87801.0,87800.0,0.0033006]
[1764549857343,0.57146519,87801.0,87800.0,0.0033006]
[1764549857536,0.56946519,87801.0,87800.0,0.0033006]
[1764549857752,0.56946519,87801.0,87800.0,0.0043006]
[1764549858173,0.56946519,87801.0,87800.0,0.0033006]
[1764549858174,0.4,87801.0,87800.0,0.0033006]
[1764549858383,0.41289519,87801.0,87800.0,0.0033006]
[1764549858596,0.402,87801.0,87800.0,0.39461103]
[1764549859008,0.401,87801.0,87800.0,0.1668206]
[1764549859211,0.401,87801.0,87800.0,0.0033006]
[1764549860018,0.4,87801.0,87800.0,0.0033006]
[1764549860222,0.4,87801.0,87800.0,0.0043006]
[1764549860430,0.4,87801.0,87800.0,0.1678206]
[1764549860643,0.4,87801.0,87800.0,0.1668206]
[1764549861024,0.4,87801.0,87800.0,0.0043006]
[1764549861230,0.4,87801.0,87800.0,0.0033006]
[1764549861431,0.4,87801.0,87800.0,0.0691106]
[1764549861632,0.4,87801.0,87800.0,0.1698206]
[1764549861886,0.4,87801.0,87800.0,0.1668206]
[1764549862044,0.4,87801.0,87800.0,0.0033006]
[1764549862597,0.4,87801.0,87800.0,0.1668206]
[1764549862811,0.4,87801.0,87800.0,0.26802436]
[1764549863247,0.4,87801.0,87800.0,0.26902436]
[1764549863645,0.4,87801.0,87800.0,0.26802436]
[1764549863864,0.4,87801.0,87800.0,0.0063006]
[1764549864594,0.4,87801.0,87800.0,0.0033006]
[1764549864821,0.4,87801.0,87800.0,0.0063006]
[1764549865590,0.4,87801.0,87800.0,0.39632103]
[1764549865791,0.4,87801.0,87800.0,0.68279803]
[1764549865903,0.4,87801.0,87800.0,0.8736324]
[1764549866110,0.4,87801.0,87800.0,0.85525503]
[1764549866313,0.399841,87801.0,87800.0,0.98806503]
[1764549866625,0.399841,87801.0,87800.0,0.71832103]
[1764549866828,0.399841,87801.0,87800.0,1.28187503]
[1764549867051,0.399841,87801.0,87800.0,1.2201904]
[1764549867266,0.399841,87801.0,87800.0,1.4029504]
[1764549867482,0.399131,87801.0,87800.0,1.49595939]
[1764549867684,0.399131,87801.0,87800.0,3.50630839]
[1764549867850,0.399131,87801.0,87800.0,1.21796839]
[1764549868049,0.399131,87801.0,87800.0,1.17382539]
[1764549868268,0.399131,87801.0,87800.0,1.1333684]
[1764549868472,0.399131,87801.0,87800.0,0.90563103]
[1764549868672,0.399131,87801.0,87800.0,0.60510803]
[1764549868870,0.399131,87801.0,87800.0,0.53683403]
[1764549869157,0.399131,87801.0,87800.0,0.1745306]
[1764549869349,0.399131,87801.0,87800.0,0.1665306]
[1764549869805,0.399131,87801.0,87800.0,0.1715306]
[1764549870009,0.399131,87801.0,87800.0,0.1655306]
[1764549870223,0.399131,87801.0,87800.0,0.1665306]
[1764549870387,0.399131,87801.0,87800.0,0.1705306]
[1764549870773,0.399131,87801.0,87800.0,0.1655306]
[1764549870915,0.399131,87801.0,87800.0,0.1705306]
[1764549871108,0.399131,87801.0,87800.0,0.0728906]
[1764549871307,0.399131,87801.0,87800.0,0.1655306]
[1764549871532,0.399131,87801.0,87800.0,0.39332103]
[1764549871692,0.399131,87801.0,87800.0,0.39432103]
[1764549871896,0.399131,87801.0,87800.0,0.99073403]
[1764549872114,0.399131,87801.0,87800.0,0.66390603]
[1764549872336,0.399131,87801.0,87800.0,0.75010603]
[1764549872541,0.399131,87801.0,87800.0,0.75210603]
[1764549872742,0.399131,87801.0,87800.0,0.39432103]
[1764549872944,0.399131,87801.0,87800.0,2.0268214]
[1764549873285,0.399131,87801.0,87800.0,0.47281221]
[1764549873424,0.399131,87801.0,87800.0,0.46013421]
[1764549873621,0.399131,87801.0,87800.0,0.005]
[1764549873882,0.399131,87801.0,87800.0,0.10620376]
[1764549874035,0.399131,87801.0,87800.0,0.001]
[1764549874238,0.62691883,87801.0,87800.0,0.002]
[1764549874433,0.63781402,87801.0,87800.0,0.003]
[1764549874646,0.399131,87801.0,87800.0,0.003]
[1764549874987,0.555771,87801.0,87800.0,0.003]
[1764549875143,0.56666619,87801.0,87800.0,0.003]
[1764549875487,0.56666619,87801.0,87800.0,0.001]
[1764549875907,0.41002619,87801.0,87800.0,0.003]
[1764549876109,0.56666619,87801.0,87800.0,0.001]
[1764549876305,0.01138978,87798.0,87794.0,0.0113903]
[1764549876469,0.01138991,87797.0,87794.0,0.02455219]
[1764549876665,0.38138991,87797.0,87794.0,0.01316189]
[1764549876868,0.07533519,87795.0,87794.0,0.01316189]
[1764549877189,0.44533519,87795.0,87794.0,0.01316189]
[1764549877503,0.53753519,87795.0,87794.0,0.01316189]
[1764549878331,0.76533859,87795.0,87794.0,0.01316189]
[1764549879279,0.76833859,87795.0,87794.0,0.01316189]
[1764549879502,0.76533859,87795.0,87794.0,0.01316189]
[1764549879933,0.76833859,87795.0,87794.0,0.01316189]
[1764549880141,0.76533859,87795.0,87794.0,0.01316189]
[1764549880294,0.7544434,87795.0,87794.0,0.01316189]
[1764549880500,0.54053519,87795.0,87794.0,0.01316189]
[1764549880698,0.67613859,87795.0,87794.0,0.01316189]
[1764549881117,0.38389519,87795.0,87794.0,0.01316189]
[1764549881339,0.373,87795.0,87794.0,0.01316189]
[1764549881702,0.37,87795.0,87794.0,0.01316189]
[1764549881897,0.76833859,87795.0,87794.0,0.01316189]
[1764549882279,0.37,87795.0,87794.0,0.01316189]
[1764549882457,0.01139159,87784.0,87775.0,0.22785378]
[1764549882623,0.36139159,87784.0,87781.0,0.10120376]
[1764549882803,0.35,87784.0,87782.0,0.22783714]
[1764549883710,0.35,87784.0,87783.0,0.00126]
[1764549883911,0.01138874,87806.0,87800.0,0.22779027]
[1764549884100,0.01138874,87806.0,87802.0,0.2391745]
[1764549884101,0.34,87806.0,87802.0,0.2391745]
[1764549884302,0.34,87806.0,87803.0,0.01138913]
[1764549884652,0.36228393,87806.0,87801.0,0.11259315]
[1764549884888,0.01138887,87805.0,87797.0,0.10120376]
[1764549885060,0.37986105,87805.0,87800.0,0.01138952]
[1764549885310,0.011389,87804.0,87800.0,0.01138952]
[1764549885535,0.39,87804.0,87802.0,0.01138926]
[1764549885804,0.39,87804.0,87797.0,0.10120376]
[1764549885805,0.01138939,87801.0,87773.0,0.00063]
[1764549885973,0.01139004,87796.0,87794.0,0.56754815]
[1764549886168,0.2278034,87795.0,87794.0,0.56754815]
[1764549886488,0.01139042,87793.0,87790.0,0.01139081]
[1764549886675,0.6278088,87793.0,87787.0,0.23921278]
[1764549886888,0.4,87793.0,87790.0,0.01139081]
[1764549887033,0.4,87793.0,87790.0,0.23920718]
[1764549887377,0.4,87793.0,87791.0,0.22781378]
[1764549888140,0.4,87793.0,87792.0,0.00063]
[1764549888338,0.4,87793.0,87791.0,0.27781378]
[1764549888766,0.401,87793.0,87791.0,0.27781378]
[1764549889145,0.4,87793.0,87791.0,0.27781378]
[1764549889366,0.4,87793.0,87791.0,0.051]
[1764549889536,0.4,87793.0,87792.0,0.22781119]
[1764549890156,0.4,87793.0,87792.0,0.22844119]
[1764549890899,0.4,87793.0,87792.0,0.22781119]
[1764549891622,0.01139055,87792.0,87784.0,0.00024874]
[1764549891780,0.40847639,87792.0,87789.0,0.01139094]
[1764549891994,0.38,87792.0,87789.0,0.23920761]
[1764549892302,0.38,87792.0,87791.0,0.22781378]
[1764549892704,0.38,87792.0,87791.0,0.22844378]
[1764549893064,0.38,87792.0,87791.0,0.22907378]
[1764549893289,0.38,87792.0,87791.0,0.22844378]
[1764549893490,0.38,87792.0,87791.0,0.001]
[1764549894243,0.38,87792.0,87791.0,0.00226]
[1764549895280,0.38,87792.0,87791.0,0.01314837]
[1764549895521,0.38,87792.0,87791.0,0.00163]
[1764549896039,0.38,87792.0,87791.0,0.001]
[1764549896242,0.38,87792.0,87791.0,0.22881378]
[1764549896581,0.38,87792.0,87791.0,0.23181378]
[1764549896724,0.38,87792.0,87791.0,0.23081378]
[1764549897747,0.38,87792.0,87791.0,0.22781378]
[1764549898197,0.38,87792.0,87791.0,0.001]
[1764549898472,0.09261,87803.0,87791.0,0.001]
[1764549898473,0.14148,87819.0,87806.0,0.01138874]
[1764549898676,0.01618212,87818.0,87815.0,0.22775147]
[1764549898833,0.01089519,87815.0,87812.0,0.23914726]
[1764549899038,0.35,87815.0,87814.0,0.22775373]
[1764549899257,0.35,87815.0,87813.0,0.22775462]
[1764549899594,0.35,87815.0,87812.0,0.23914726]
[1764549899595,0.22776927,87809.0,87792.0,0.22781068]
[1764549899778,0.04858,87801.0,87800.0,0.56754815]
[1764549899977,0.04858,87801.0,87797.0,0.11259367]
[1764549899978,0.38,87801.0,87797.0,0.11259367]
[1764549900187,0.38,87801.0,87799.0,0.22779277]
[1764549902071,0.38,87801.0,87800.0,0.00063]
[1764549902803,0.38,87801.0,87800.0,0.38678299]
[1764549903142,0.00011799,87819.0,87818.0,2.32634174]
[1764549903335,0.32011799,87819.0,87818.0,0.55873374]
[1764549903643,0.32011799,87819.0,87818.0,0.55936374]
[1764549903943,0.32011799,87819.0,87818.0,0.00736]
[1764549904648,0.01138757,87815.0,87801.0,0.01138939]
[1764549904867,0.03985696,87814.0,87806.0,0.22777245]
[1764549904996,0.39846926,87814.0,87811.0,0.01138809]
[1764549905198,0.37,87814.0,87810.0,0.01138822]
[1764549905551,0.60914251,87814.0,87809.0,0.01138835]
[1764549905752,0.37,87814.0,87811.0,0.10120376]
[1764549905987,0.37,87814.0,87811.0,0.34035374]
[1764549906203,0.372,87814.0,87811.0,0.34035374]
[1764549906404,0.372,87814.0,87813.0,0.22775671]
[1764549906883,0.372,87814.0,87812.0,0.22775676]
[1764549907090,0.01089519,87813.0,87812.0,0.22775676]
[1764549907330,0.33,87813.0,87812.0,0.22775676]
[1764549907722,0.33,87813.0,87807.0,0.01138861]
[1764549907884,0.33,87813.0,87809.0,0.01138835]
[1764549908053,0.02228315,87812.0,87807.0,0.01138861]
[1764549908252,0.01138822,87810.0,87806.0,0.01138874]
[1764549908526,0.02228367,87808.0,87802.0,0.01138926]
[1764549908695,0.43228367,87808.0,87799.0,0.01138965]
[1764549908861,0.01138861,87807.0,87803.0,0.01138913]
[1764549909057,0.01138887,87805.0,87797.0,0.10120376]
[1764549909257,0.01138887,87805.0,87801.0,0.22778783]
[1764549909258,0.4,87805.0,87801.0,0.22778783]
[1764549909463,0.4,87805.0,87804.0,0.22778005]
[1764549910109,0.22778005,87804.0,87775.0,0.00063]
[1764549910311,0.04192519,87800.0,87796.0,0.10120376]
[1764549910510,0.01138965,87799.0,87796.0,0.10120376]
[1764549910757,0.01138965,87799.0,87784.0,0.00024874]
[1764549910758,0.01139055,87792.0,87784.0,0.00024874]
[1764549911117,0.05982519,87785.0,87784.0,0.00024874]
[1764549911276,0.49430519,87785.0,87784.0,0.00024874]
[1764549911478,0.58691519,87785.0,87784.0,0.00024874]
[1764549911858,0.58691519,87785.0,87784.0,0.00224874]
[1764549912060,0.58691519,87785.0,87763.0,0.05]
[1764549912061,0.01139393,87766.0,87763.0,0.05]